fUST/lending_fUST_20240617
["ID","MTS","AMOUNT","RATE_DAILY","PERIOD"]
[329696906,1718584251072,-504.29,0.00015158,2]
[329696910,1718584251108,-519.3,0.00015158,2]
[329696913,1718584251121,-1279.86,0.00015158,2]
[329696916,1718584251164,-500.0,0.00015158,2]
[329696918,1718584251183,-174.66986823,0.00015158,2]
[329696921,1718584251258,-302.8671087,0.00015158,2]
[329696926,1718584251275,-362.32374883,0.00015158,2]
[329696928,1718584251298,-1901.01398624,0.00015158,2]
[329696935,1718584321191,160.0,0.00018099,21]
[329696936,1718584322637,160.0,0.00017983,17]
[329696937,1718584322966,160.0,0.00017953,16]
[329696938,1718584323420,160.0,0.00017924,15]
[329696939,1718584323778,160.0,0.00017895,14]
[329696941,1718584435610,3000.0,0.000225,30]
[329696945,1718585017471,3000.0,0.000225,30]
[329697047,1718585450718,-300.0,0.00013556,2]
[329697049,1718585450731,-296.98274629,0.00013557,2]
[329697050,1718585450745,-500.36449618,0.00013557,2]
[329697053,1718585450762,-304.51294898,0.00013557,2]
[329697066,1718585451465,-13102.76210455,0.00013557,2]
[329697067,1718585451477,-1131.46711427,0.000145,2]
[329697070,1718585451500,-677.43468109,0.00014509,2]
[329697071,1718585451512,-322.77097963,0.00014609,2]
[329697072,1718585451525,-500.0,0.00014609,2]
[329697073,1718585451536,-500.0,0.00014609,2]
[329697074,1718585451549,-500.0,0.00014609,2]
[329697075,1718585451562,-500.0,0.00014609,2]
[329697076,1718585451574,-500.0,0.00014609,2]
[329697077,1718585451597,-500.0,0.00014609,2]
[329697078,1718585451620,-500.0,0.00014609,2]
[329697079,1718585451640,-500.0,0.00014609,2]
[329697080,1718585451667,-500.0,0.00014609,2]
[329697081,1718585451678,-574.43,0.00014609,2]
[329697082,1718585451689,-500.0,0.00014609,2]
[329697083,1718585451700,-500.0,0.00014609,2]
[329697084,1718585451717,-563.51631747,0.00014609,2]
[329697085,1718585451733,-192.18347898,0.00014609,2]
[329697086,1718585451755,-307.81652102,0.00014609,2]
[329697087,1718585451784,-500.0,0.00014609,2]
[329697088,1718585451796,-500.0,0.00014609,2]
[329697089,1718585451807,-337.01781283,0.00014609,2]
[329697090,1718585451834,-622.29,0.00014609,2]
[329697091,1718585451844,-7427.53,0.00014609,2]
[329697092,1718585451854,-500.0,0.00014609,2]
[329697093,1718585451894,-500.0,0.00014609,2]
[329697094,1718585451910,-500.0,0.00014609,2]
[329697095,1718585451923,-918.55,0.00014609,2]
[329697096,1718585451939,-500.0,0.00014609,2]
[329697097,1718585451950,-500.0,0.00014609,2]
[329697098,1718585451962,-555.37,0.00014609,2]
[329697099,1718585451998,-1356.24,0.00014609,2]
[329697100,1718585452011,-500.0,0.00014609,2]
[329697101,1718585452025,-568.09,0.00014609,2]
[329697102,1718585452036,-1343.57,0.00014609,2]
[329697103,1718585452050,-500.0,0.00014609,2]
[329697104,1718585452065,-500.0,0.00014609,2]
[329697105,1718585452078,-500.0,0.00014609,2]
[329697106,1718585452095,-500.0,0.00014609,2]
[329697107,1718585452109,-500.0,0.00014609,2]
[329697108,1718585452122,-500.0,0.00014609,2]
[329697109,1718585452142,-500.0,0.00014609,2]
[329697110,1718585452160,-500.0,0.00014609,2]
[329697111,1718585452179,-3506.84,0.00014609,2]
[329697112,1718585452193,-433.06,0.00014609,2]
[329697113,1718585452216,-640.81,0.00014609,2]
[329697114,1718585452256,-501.18,0.00014609,2]
[329697115,1718585452276,-500.0,0.0001461,2]
[329697116,1718585452290,-500.0,0.0001461,2]
[329697117,1718585452303,-515.36212002,0.0001461,2]
[329697118,1718585452317,-500.0,0.0001461,2]
[329697119,1718585452364,-500.0,0.0001461,2]
[329697120,1718585452384,-500.0,0.0001461,2]
[329697121,1718585452408,-500.0,0.0001461,2]
[329697122,1718585452422,-500.0,0.0001461,2]
[329697123,1718585452436,-500.0,0.0001461,2]
[329697124,1718585452492,-642.25321705,0.0001461,2]
[329697125,1718585452524,-500.0,0.0001461,2]
[329697126,1718585452544,-500.0,0.0001461,2]
[329697127,1718585452569,-500.0,0.0001461,2]
[329697128,1718585452590,-500.0,0.0001461,2]
[329697129,1718585452646,-500.0,0.0001461,2]
[329697130,1718585452660,-500.0,0.0001461,2]
[329697131,1718585452673,-500.0,0.0001461,2]
[329697132,1718585452686,-500.0,0.0001461,2]
[329697133,1718585452713,-500.0,0.0001461,2]
[329697134,1718585452749,-500.0,0.0001461,2]
[329697135,1718585452797,-500.0,0.0001461,2]
[329697136,1718585452809,-511.5,0.0001461,2]
[329697137,1718585452827,-419.94752886,0.0001461,2]
[329697138,1718585452840,-641.56348286,0.0001461,2]
[329697139,1718585452852,-500.0,0.0001461,2]
[329697140,1718585452864,-500.10429129,0.0001461,2]
[329697141,1718585452878,-500.0,0.0001461,2]
[329697142,1718585452890,-500.0,0.0001461,2]
[329697143,1718585452902,-1214.74,0.0001461,2]
[329697144,1718585452915,-945.26,0.0001461,2]
[329697145,1718585452928,-437.95619362,0.0001461,2]
[329697146,1718585452950,-62.04380638,0.0001461,2]
[329697147,1718585452985,-356.54221974,0.0001461,2]
[329697148,1718585453061,-143.45778026,0.0001461,2]
[329697149,1718585453077,-1339.9,0.0001461,2]
[329697150,1718585453108,-500.0,0.0001461,2]
[329697151,1718585453121,-1708.69,0.0001461,2]
[329697152,1718585453137,-500.0,0.0001461,2]
[329697153,1718585453150,-5172.82,0.0001461,2]
[329697154,1718585453161,-4336.13,0.0001461,2]
[329697155,1718585453176,-500.0,0.0001461,2]
[329697156,1718585453192,-500.0,0.00014611,2]
[329697157,1718585453204,-552.14,0.00014612,2]
[329697158,1718585453219,-500.0,0.00014882,2]
[329697159,1718585453235,-500.0,0.00014883,2]
[329697160,1718585453256,-500.0,0.00014883,2]
[329697161,1718585453289,-500.0,0.00014883,2]
[329697162,1718585453299,-574.43,0.00014883,2]
[329697163,1718585453313,-500.0,0.00014883,2]
[329697164,1718585453326,-285.68582605,0.00014883,2]
[329697165,1718585453339,-500.0,0.00014883,2]
[329697166,1718585453351,-622.29,0.00014883,2]
[329697167,1718585453365,-7427.53,0.00014883,2]
[329697168,1718585453378,-500.0,0.00014883,2]
[329697169,1718585453389,-500.0,0.00014883,2]
[329697170,1718585453400,-918.55,0.00014883,2]
[329697171,1718585453414,-500.0,0.00014883,2]
[329697172,1718585453451,-500.0,0.00014883,2]
[329697173,1718585453480,-555.37,0.00014883,2]
[329697174,1718585453517,-1356.24,0.00014883,2]
[329697175,1718585453529,-568.09,0.00014883,2]
[329697176,1718585453542,-679.39203784,0.00014883,2]
[329697177,1718585453560,-664.17796216,0.00014883,2]
[329697178,1718585453572,-334.8167978,0.00014883,2]
[329697179,1718585453590,-165.1832022,0.00014883,2]
[329697180,1718585453616,-500.0,0.00014883,2]
[329697181,1718585453672,-528.94905643,0.00014883,2]
[329697182,1718585453704,-446.48349725,0.00014883,2]
[329697183,1718585453717,-500.0,0.00014883,2]
[329697184,1718585453749,-3506.84,0.00014883,2]
[329697185,1718585453767,-640.81,0.00014883,2]
[329697186,1718585453784,-501.18,0.00014883,2]
[329697187,1718585453800,-500.0,0.00014884,2]
[329697188,1718585453812,-500.0,0.00014884,2]
[329697189,1718585453853,-522.6128348,0.00014884,2]
[329697190,1718585453869,-511.5,0.00014884,2]
[329697191,1718585453904,-500.0,0.00014884,2]
[329697192,1718585453924,-500.0,0.00014884,2]
[329697193,1718585453938,-1214.74,0.00014884,2]
[329697194,1718585453951,-945.26,0.00014884,2]
[329697195,1718585453965,-500.0,0.00014884,2]
[329697196,1718585453983,-1339.9,0.00014884,2]
[329697197,1718585453999,-1708.69,0.00014884,2]
[329697198,1718585454017,-3074.52495292,0.00014884,2]
[329697201,1718585630426,3000.0,0.000225,30]
[329697214,1718586229628,3000.0,0.000225,30]
[329697422,1718586643735,-153.04594935,0.00014508,2]
[329697425,1718586643759,-592.75534598,0.00014508,2]
[329697427,1718586643773,-300.0,0.00014606,2]
[329697429,1718586643787,-875.76660765,0.00014607,2]
[329697431,1718586643802,-500.0,0.00014607,2]
[329697433,1718586643823,-500.0,0.00014607,2]
[329697435,1718586643844,-500.0,0.00014607,2]
[329697437,1718586643855,-500.0,0.00014607,2]
[329697439,1718586643866,-500.0,0.00014607,2]
[329697441,1718586643888,-500.0,0.00014607,2]
[329697442,1718586643899,-500.0,0.00014607,2]
[329697443,1718586643925,-500.0,0.00014607,2]
[329697444,1718586643940,-826.96176703,0.00014607,2]
[329697445,1718586643961,-468.12640148,0.00014607,2]
[329697446,1718586643974,-2046.50183149,0.00014607,2]
[329697447,1718586644006,-500.0,0.00014608,2]
[329697448,1718586644022,-500.0,0.00014608,2]
[329697449,1718586644034,-500.0,0.00014608,2]
[329697450,1718586644045,-500.0,0.00014608,2]
[329697451,1718586644056,-500.0,0.00014608,2]
[329697452,1718586644075,-500.0,0.00014608,2]
[329697453,1718586644099,-274.39709144,0.00014608,2]
[329697454,1718586644253,-225.60290856,0.00014608,2]
[329697455,1718586644265,-500.0,0.00014608,2]
[329697456,1718586644276,-500.0,0.00014608,2]
[329697458,1718586644288,-500.0,0.00014608,2]
[329697460,1718586644314,-500.0,0.00014608,2]
[329697461,1718586644325,-500.0,0.00014608,2]
[329697462,1718586644338,-500.0,0.00014608,2]
[329697463,1718586644349,-500.0,0.00014608,2]
[329697464,1718586644372,-500.0,0.00014608,2]
[329697465,1718586644389,-500.0,0.00014608,2]
[329697466,1718586644399,-500.45785559,0.00014608,2]
[329697467,1718586644409,-500.0,0.00014608,2]
[329697468,1718586644424,-500.0,0.00014608,2]
[329697469,1718586644437,-109.99432036,0.00014608,2]
[329697487,1718586646121,-390.00567964,0.00014608,2]
[329697488,1718586646150,-500.0,0.00014608,2]
[329697489,1718586646162,-500.0,0.00014608,2]
[329697490,1718586646189,-500.0,0.00014608,2]
[329697491,1718586646201,-500.0,0.00014608,2]
[329697492,1718586646233,-500.0,0.00014608,2]
[329697493,1718586646244,-500.0,0.00014608,2]
[329697494,1718586646268,-500.0,0.00014608,2]
[329697495,1718586646289,-500.0,0.00014608,2]
[329697496,1718586646318,-250.45,0.00014608,2]
[329697497,1718586646364,-500.0,0.00014608,2]
[329697499,1718586646378,-500.0,0.00014608,2]
[329697500,1718586646393,-500.0,0.00014608,2]
[329697503,1718586646413,-643.13870491,0.00014608,2]
[329697505,1718586646424,-547.4,0.00014608,2]
[329697507,1718586646435,-500.0,0.00014608,2]
[329697509,1718586646450,-500.0,0.00014608,2]
[329697511,1718586646464,-500.0,0.00014608,2]
[329697513,1718586646477,-500.0,0.00014608,2]
[329697515,1718586646488,-500.0,0.00014608,2]
[329697517,1718586646500,-500.0,0.00014608,2]
[329697519,1718586646510,-500.0,0.00014608,2]
[329697521,1718586646523,-500.0,0.00014608,2]
[329697523,1718586646535,-500.0,0.00014608,2]
[329697524,1718586646546,-595.16700674,0.00014608,2]
[329697527,1718586646567,-500.0,0.00014608,2]
[329697529,1718586646578,-500.0,0.00014608,2]
[329697530,1718586646592,-500.0,0.00014608,2]
[329697533,1718586646616,-4298.43,0.00014608,2]
[329697534,1718586646636,-592.51,0.00014608,2]
[329697536,1718586646651,-6903.46,0.00014608,2]
[329697538,1718586646668,-500.0,0.00014608,2]
[329697540,1718586646684,-500.0,0.00014608,2]
[329697542,1718586646696,-500.0,0.00014608,2]
[329697544,1718586646711,-500.0,0.00014608,2]
[329697546,1718586646723,-500.0,0.00014608,2]
[329697548,1718586646738,-1263.98,0.00014608,2]
[329697550,1718586646760,-500.0,0.00014608,2]
[329697553,1718586646775,-500.0,0.00014608,2]
[329697554,1718586646816,-500.0,0.00014608,2]
[329697556,1718586646845,-500.0,0.00014608,2]
[329697557,1718586646874,-500.0,0.00014608,2]
[329697560,1718586646889,-500.0,0.00014608,2]
[329697562,1718586646909,-1701.8,0.00014608,2]
[329697564,1718586646934,-500.0,0.00014608,2]
[329697566,1718586646946,-500.0,0.00014608,2]
[329697568,1718586646974,-500.0,0.00014608,2]
[329697569,1718586646991,-500.0,0.00014608,2]
[329697570,1718586647002,-1273.57,0.00014608,2]
[329697572,1718586647022,-541.58,0.00014608,2]
[329697574,1718586647041,-500.0,0.00014608,2]
[329697576,1718586647052,-500.0,0.00014608,2]
[329697578,1718586647063,-500.0,0.00014608,2]
[329697580,1718586647074,-500.0,0.00014608,2]
[329697582,1718586647088,-500.0,0.00014608,2]
[329697584,1718586647113,-500.0,0.00014608,2]
[329697585,1718586647142,-542.55906541,0.00014608,2]
[329697588,1718586647171,-500.0,0.00014608,2]
[329697589,1718586647182,-500.0,0.00014608,2]
[329697591,1718586647192,-524.26973907,0.00014609,2]
[329697592,1718586647204,-500.0,0.00014609,2]
[329697594,1718586647218,-500.0,0.00014609,2]
[329697596,1718586647229,-1146.69,0.00014609,2]
[329697598,1718586647246,-909.11,0.00014609,2]
[329697600,1718586647270,-500.0,0.00014609,2]
[329697602,1718586647296,-500.0,0.00014609,2]
[329697604,1718586647320,-404.42716658,0.00014609,2]
[329697606,1718586647330,-1268.98,0.00014609,2]
[329697608,1718586647348,-500.0,0.00014609,2]
[329697610,1718586647380,-1907.7,0.00014609,2]
[329697611,1718586647391,-500.0,0.00014609,2]
[329697613,1718586647404,-500.0,0.00014609,2]
[329697614,1718586647417,-5069.26,0.00014609,2]
[329697616,1718586647427,-500.0,0.00014609,2]
[329697618,1718586647443,-153.04594935,0.00014782,2]
[329697619,1718586647459,-639.82,0.00014881,2]
[329697621,1718586647504,-500.0,0.00014881,2]
[329697622,1718586647524,-500.0,0.00014881,2]
[329697624,1718586647541,-500.0,0.00014881,2]
[329697626,1718586647558,-3341.59,0.00014881,2]
[329697628,1718586647577,-500.0,0.00014882,2]
[329697630,1718586647597,-500.0,0.00014882,2]
[329697632,1718586647619,-500.0,0.00014882,2]
[329697634,1718586647640,-500.0,0.00014882,2]
[329697636,1718586647652,-500.0,0.00014882,2]
[329697638,1718586647664,-500.0,0.00014882,2]
[329697640,1718586647685,-547.4,0.00014882,2]
[329697642,1718586647697,-500.0,0.00014882,2]
[329697644,1718586647712,-500.0,0.00014882,2]
[329697646,1718586647724,-500.0,0.00014882,2]
[329697647,1718586647738,-500.0,0.00014882,2]
[329697649,1718586647771,-4298.43,0.00014882,2]
[329697651,1718586647785,-6903.46,0.00014882,2]
[329697653,1718586647840,-592.51,0.00014882,2]
[329697655,1718586647858,-355.28427469,0.00014882,2]
[329697658,1718586647893,-144.71572531,0.00014882,2]
[329697659,1718586647909,-1263.98,0.00014882,2]
[329697661,1718586647940,-500.0,0.00014882,2]
[329697665,1718586647972,-1701.8,0.00014882,2]
[329697667,1718586647990,-500.0,0.00014882,2]
[329697669,1718586648010,-1273.57,0.00014882,2]
[329697671,1718586648051,-541.58,0.00014882,2]
[329697673,1718586648089,-500.0,0.00014882,2]
[329697677,1718586648111,-500.0,0.00014883,2]
[329697680,1718586648122,-500.0,0.00014883,2]
[329697682,1718586648138,-1146.69,0.00014883,2]
[329697683,1718586648158,-909.11,0.00014883,2]
[329697685,1718586648170,-1268.98,0.00014883,2]
[329697686,1718586648194,-1907.7,0.00014883,2]
[329697693,1718586648347,-5069.26,0.00014883,2]
[329697695,1718586648370,-153.04594935,0.00015056,2]
[329697697,1718586648382,-306.0,0.000151,2]
[329697699,1718586648410,-153.0,0.000151,2]
[329697700,1718586648425,-153.0,0.000151,2]
[329697702,1718586648447,-153.0,0.000151,2]
[329697704,1718586648470,-235.629,0.00015124,2]
[329697707,1718586648502,-153.647,0.00015124,2]
[329697709,1718586648547,-494.0,0.00015124,2]
[329697711,1718586648573,-1447.29651176,0.00015155,2]
[329697712,1718586648587,-500.0,0.00015155,2]
[329697714,1718586648607,-500.0,0.00015155,2]
[329697717,1718586648627,-500.0,0.00015155,2]
[329697718,1718586648657,-3341.59,0.00015155,2]
[329697720,1718586648681,-33779.4265534,0.00015156,2]
[329697723,1718586648709,-917.40304382,0.00015156,2]
[329697778,1718586650020,-585.4,0.00014608,2]
[329697780,1718586650045,-777.05882202,0.00015156,2]
[329697782,1718586650056,-500.0,0.00015156,2]
[329697784,1718586650084,-500.0,0.00015156,2]
[329697786,1718586650121,-500.0,0.00015156,2]
[329697788,1718586650134,-500.0,0.00015156,2]
[329697791,1718586650167,-500.0,0.00015156,2]
[329697793,1718586650179,-500.0,0.00015156,2]
[329697795,1718586650215,-381.74949819,0.00015156,2]
[329697802,1718586650361,-585.4,0.00014882,2]
[329697803,1718586650373,-165.65050181,0.00015156,2]
[329697806,1718586650400,-500.0,0.00015156,2]
[329697808,1718586650413,-500.0,0.00015156,2]
[329697810,1718586650428,-500.0,0.00015156,2]
[329697811,1718586650444,-500.0,0.00015156,2]
[329697813,1718586650469,-4298.43,0.00015156,2]
[329697816,1718586650495,-302.12999405,0.00015156,2]
[329703062,1718586819881,3000.0,0.000225,30]
[329703063,1718587151131,1311.0,0.000236,120]
[329703064,1718587416897,3000.0,0.000225,30]
[329703111,1718587839003,-645.57335571,0.00014464,2]
[329703113,1718587839030,-608.70791268,0.00014507,2]
[329703114,1718587839048,-300.0,0.00014605,2]
[329703115,1718587839070,-500.0,0.00014606,2]
[329703116,1718587839083,-500.0,0.00014606,2]
[329703117,1718587839115,-500.0,0.00014606,2]
[329703118,1718587839128,-500.0,0.00014606,2]
[329703119,1718587839150,-500.0,0.00014606,2]
[329703120,1718587839164,-500.0,0.00014606,2]
[329703121,1718587839179,-500.0,0.00014606,2]
[329703122,1718587839205,-500.0,0.00014606,2]
[329703123,1718587839219,-312.71655245,0.00014606,2]
[329703124,1718587839262,-187.28344755,0.00014606,2]
[329703125,1718587839301,-493.10699737,0.00014606,2]
[329703126,1718587839320,-6.89300263,0.00014606,2]
[329703128,1718587839350,-427.53639107,0.00014606,2]
[329703193,1718587840715,-72.46360893,0.00014606,2]
[329703195,1718587840737,-186.28998959,0.00014606,2]
[329703197,1718587840759,-313.71001041,0.00014606,2]
[329703199,1718587840775,-500.0,0.00014606,2]
[329703201,1718587840790,-500.0,0.00014606,2]
[329703202,1718587840802,-500.0,0.00014606,2]
[329703204,1718587840819,-6315.58,0.00014606,2]
[329703206,1718587840843,-500.0,0.00014606,2]
[329703207,1718587840856,-500.0,0.00014606,2]
[329703209,1718587840883,-2923.89,0.00014606,2]
[329703211,1718587840914,-500.0,0.00014606,2]
[329703213,1718587840932,-543.13,0.00014606,2]
[329703215,1718587840944,-1158.65,0.00014606,2]
[329703216,1718587840960,-500.0,0.00014606,2]
[329703218,1718587840973,-1559.98,0.00014606,2]
[329703219,1718587840988,-500.0,0.00014606,2]
[329703220,1718587841004,-500.0,0.00014606,2]
[329703222,1718587841015,-439.97391444,0.00014606,2]
[329703224,1718587841041,-500.0,0.00014606,2]
[329703225,1718587841064,-500.0,0.00014606,2]
[329703228,1718587841082,-1207.65,0.00014606,2]
[329703229,1718587841108,-536.62,0.00014606,2]
[329703231,1718587841121,-1051.14,0.00014606,2]
[329703232,1718587841140,-500.0,0.00014606,2]
[329703235,1718587841166,-834.77,0.00014606,2]
[329703237,1718587841192,-500.0,0.00014606,2]
[329703239,1718587841204,-507.94762022,0.00014606,2]
[329703240,1718587841215,-500.0,0.00014606,2]
[329703243,1718587841227,-521.13992291,0.00014606,2]
[329703244,1718587841257,-1204.54,0.00014606,2]
[329703246,1718587841278,-541.01982526,0.00014607,2]
[329703249,1718587841292,-500.0,0.00014607,2]
[329703250,1718587841308,-267.36757546,0.00014607,2]
[329703252,1718587841319,-500.0,0.00014607,2]
[329703254,1718587841331,-500.0,0.00014607,2]
[329703255,1718587841344,-500.0,0.00014607,2]
[329703257,1718587841356,-500.0,0.00014607,2]
[329703259,1718587841380,-500.0,0.00014607,2]
[329703262,1718587841413,-500.0,0.00014607,2]
[329703264,1718587841436,-290.37787744,0.00014607,2]
[329703267,1718587841473,-518.47414926,0.00014607,2]
[329703268,1718587841489,-500.0,0.00014607,2]
[329703270,1718587841503,-500.0,0.00014607,2]
[329703271,1718587841524,-500.0,0.00014607,2]
[329703272,1718587841536,-3761.13,0.00014607,2]
[329703273,1718587841549,-1830.32,0.00014607,2]
[329703274,1718587841564,-500.0,0.00014607,2]
[329703276,1718587841601,-4703.61,0.00014607,2]
[329703277,1718587841620,-500.0,0.0001488,2]
[329703278,1718587841634,-500.0,0.0001488,2]
[329703279,1718587841665,-500.0,0.0001488,2]
[329703280,1718587841683,-500.0,0.0001488,2]
[329703281,1718587841701,-6315.58,0.0001488,2]
[329703282,1718587841729,-500.0,0.0001488,2]
[329703283,1718587841763,-500.0,0.0001488,2]
[329703284,1718587841784,-2923.89,0.0001488,2]
[329703285,1718587841825,-500.0,0.0001488,2]
[329703286,1718587841837,-543.13,0.0001488,2]
[329703287,1718587841850,-1158.65,0.0001488,2]
[329703288,1718587841899,-500.0,0.0001488,2]
[329703289,1718587841910,-1559.98,0.0001488,2]
[329703290,1718587841925,-500.0,0.0001488,2]
[329703291,1718587841941,-500.0,0.0001488,2]
[329703292,1718587841977,-500.0,0.0001488,2]
[329703293,1718587841997,-1207.65,0.0001488,2]
[329703294,1718587842025,-536.62,0.0001488,2]
[329703296,1718587842055,-1051.14,0.0001488,2]
[329703297,1718587842071,-436.84778693,0.0001488,2]
[329703298,1718587842090,-834.77,0.0001488,2]
[329703299,1718587842117,-500.0,0.0001488,2]
[329703300,1718587842147,-523.08332376,0.0001488,2]
[329703301,1718587842161,-1204.54,0.0001488,2]
[329703302,1718587842178,-500.0,0.00014881,2]
[329703303,1718587842192,-500.0,0.00014881,2]
[329703308,1718587842356,-500.0,0.00014881,2]
[329703311,1718587842420,-3761.13,0.00014881,2]
[329703313,1718587842437,-1830.32,0.00014881,2]
[329703315,1718587842450,-500.0,0.00014881,2]
[329703318,1718587842466,-4703.61,0.00014881,2]
[329703319,1718587842478,-155.2114939,0.00015,2]
[329703321,1718587842489,-153.0,0.00015,2]
[329703323,1718587842509,-153.0,0.00015,2]
[329703325,1718587842521,-205.5018464,0.00015,2]
[329703326,1718587842538,-422.4534111,0.00015,2]
[329703328,1718587842564,-292.7278245,0.00015,2]
[329703331,1718587842581,-306.0,0.00015,2]
[329703333,1718587842593,-292.7278245,0.00015,2]
[329703335,1718587842603,-205.5018464,0.00015,2]
[329703336,1718587842628,-153.0,0.00015,2]
[329703338,1718587842648,-153.0,0.00015,2]
[329703340,1718587842664,-153.0,0.00015,2]
[329703341,1718587842690,-1555.180867,0.00015152,2]
[329703342,1718587842710,-500.0,0.00015154,2]
[329703343,1718587842749,-500.0,0.00015154,2]
[329703344,1718587842792,-500.0,0.00015154,2]
[329703345,1718587842809,-500.0,0.00015154,2]
[329703346,1718587842829,-6315.58,0.00015154,2]
[329703347,1718587842845,-500.0,0.00015154,2]
[329703348,1718587842913,-500.0,0.00015154,2]
[329703349,1718587842936,-2923.89,0.00015154,2]
[329703350,1718587842958,-500.0,0.00015154,2]
[329703351,1718587842972,-543.13,0.00015154,2]
[329703352,1718587843000,-1158.65,0.00015154,2]
[329703353,1718587843012,-500.0,0.00015154,2]
[329703354,1718587843024,-1559.98,0.00015154,2]
[329703355,1718587843034,-500.0,0.00015154,2]
[329703356,1718587843045,-500.0,0.00015154,2]
[329703357,1718587843058,-500.0,0.00015154,2]
[329703358,1718587843077,-1207.65,0.00015154,2]
[329703359,1718587843088,-536.62,0.00015154,2]
[329703360,1718587843110,-1051.14,0.00015154,2]
[329703361,1718587843121,-834.77,0.00015154,2]
[329703362,1718587843137,-500.0,0.00015154,2]
[329703363,1718587843163,-1204.54,0.00015154,2]
[329703364,1718587843183,-500.0,0.00015155,2]
[329703365,1718587843197,-500.0,0.00015155,2]
[329703366,1718587843230,-500.0,0.00015155,2]
[329703367,1718587843275,-3761.13,0.00015155,2]
[329703368,1718587843289,-1830.32,0.00015155,2]
[329703369,1718587843302,-500.0,0.00015155,2]
[329703370,1718587843318,-4703.61,0.00015155,2]
[329703371,1718587843370,-621.27866779,0.00015187,2]
[329703372,1718587843382,-306.0,0.000152,2]
[329703373,1718587843396,-153.0,0.000152,2]
[329703374,1718587843409,-153.0,0.000152,2]
[329703375,1718587843420,-390.437475,0.00015397,2]
[329703376,1718587843435,-299.13758848,0.00015428,2]
[329703377,1718587843446,-500.0,0.00015428,2]
[329703378,1718587843458,-500.0,0.00015428,2]
[329703379,1718587843469,-500.0,0.00015428,2]
[329703380,1718587843482,-6315.58,0.00015428,2]
[329703381,1718587843494,-500.0,0.00015428,2]
[329703382,1718587843515,-500.0,0.00015428,2]
[329703383,1718587843527,-2923.89,0.00015428,2]
[329703384,1718587843550,-500.0,0.00015428,2]
[329703387,1718587843567,-543.13,0.00015428,2]
[329703391,1718587843586,-1158.65,0.00015428,2]
[329703394,1718587843598,-220.57,0.00015428,2]
[329703396,1718587843612,-1559.98,0.00015428,2]
[329703397,1718587843626,-500.0,0.00015428,2]
[329703398,1718587843650,-500.0,0.00015428,2]
[329703399,1718587843662,-1207.65,0.00015428,2]
[329703400,1718587843674,-536.62,0.00015428,2]
[329703401,1718587843688,-1051.14,0.00015428,2]
[329703402,1718587843705,-834.77,0.00015428,2]
[329703403,1718587843716,-500.0,0.00015428,2]
[329703404,1718587843728,-1204.54,0.00015428,2]
[329703405,1718587843738,-500.0,0.00015429,2]
[329703406,1718587843749,-500.0,0.00015429,2]
[329703407,1718587843772,-500.0,0.00015429,2]
[329703408,1718587843786,-3761.13,0.00015429,2]